Cogmind - Beta 16 @@@ ROGUE MODE // 2025.11.07 @ 01:53:19 Player: shapeshifter Result: Destroyed by H-81 Overseer with Heavy Linear Accelerator Performance ------------- Evolutions (9) 4500 Regions Visited (22) 4400 Robots Destroyed (0) 0 Value Destroyed (0) 0 Prototype IDs (18) 360 Alien Tech Used (3) 600 Bonus (10627) 10627 TOTAL SCORE: 20487 Bonus ------- Pacifist 8327 Entered DSFs 2000 Met Zhirov 300 Cogmind --------- Core Integrity 0/1600 Matter 66/300 Energy 100/100 System Corruption 0% Temperature Cool (0) Movement Core (50) Location -1/Access Parts ------- > --- POWER (2) -------- (None) > --- PROPULSION (11) -- (None) > --- UTILITY (11) ----- Advanced Terrain Scan Processor Advanced Hacking Suite System Shield > --- WEAPON (2) ------- (None) > --- INVENTORY (5) ---- Light Quantum Reactor Advanced Power Amplifier Medium Storage Unit Improved Field Recycling Unit (0) Peak State ------------ > --- POWER ------------ Cooled Deuterium Engine Enhanced Nuclear Core > --- PROPULSION ------- Biomechanical Wings Impulse Thruster Impulse Thruster Impulse Thruster Impulse Thruster Impulse Thruster Impulse Thruster > --- UTILITY ---------- Advanced Terrain Scan Processor Hacking Suite System Shield System Shield System Shield System Shield > --- WEAPON ----------- Lance > --- INVENTORY -------- Medium Storage Unit Improved Field Recycling Unit Lance [Rating: 84] Favorites ----------- Power Enhanced Nuclear Core Engine Cooled Deuterium Engine Power Core Enhanced Nuclear Core Reactor Fusion Reactor Propulsion Impulse Thruster Flight Unit Impulse Thruster Utility System Shield Device Advanced Transmission Jammer Storage Medium Storage Unit Processor Advanced Terrain Scan Processor Hackware System Shield Protection Experimental Power Shielding Weapon Kinetic Spear Piercing Weapon Kinetic Spear Build | -11 -10 -9 -8 -7 -7 -6 -6 -6 -6 -5 -5 -5 -5 -4 -4 -4 -4 -3 -3 -2 -2 -1 ------- Run | Yrd Mat Mat Mat Fac DSF Fac Was Fac DSF Fac Was Fac DSF Fac Upp Upp Zhi Pro Res Res DSF Acc Slots Evolved 18 | . . 2 2 2 . 2 . . . 2 . . . 2 . . . . 2 2 . 2 Power 1 | . . . 1 . . . . . . . . . . . . . . . . . . . Propulsion 9 | . . 2 1 1 . . . . . 1 . . . 1 . . . . 1 1 . 1 Utility 8 | . . . . 1 . 2 . . . 1 . . . 1 . . . . 1 1 . 1 Weapon . | . . . . . . . . . . . . . . . . . . . . . . . Parts Attached 49 | . 1 . . 1 5 4 . . . 2 . . 15 3 1 . 4 2 5 5 . 1 Power 6 | . . . . . 1 1 . . . . . . 2 . . . . . 1 1 . . Engine 2 | . . . . . . 1 . . . . . . 1 . . . . . . . . . Core 2 | . . . . . 1 . . . . . . . 1 . . . . . . . . . Reactor 2 | . . . . . . . . . . . . . . . . . . . 1 1 . . Propulsion 15 | . . . . . 3 1 . . . 1 . . 6 . . . . 1 3 . . . Treads . | . . . . . . . . . . . . . . . . . . . . . . . Leg . | . . . . . . . . . . . . . . . . . . . . . . . Wheel . | . . . . . . . . . . . . . . . . . . . . . . . Hover . | . . . . . . . . . . . . . . . . . . . . . . . Flight 15 | . . . . . 3 1 . . . 1 . . 6 . . . . 1 3 . . . Utility 24 | . 1 . . 1 1 2 . . . 1 . . 6 1 1 . 3 1 1 4 . 1 Device 11 | . 1 . . . 1 1 . . . 1 . . . 1 1 . 1 . 1 3 . . Storage 1 | . . . . . . . . . . . . . . . . . . 1 . . . . Processor 2 | . . . . 1 . 1 . . . . . . . . . . . . . . . . Hackware 9 | . . . . . . . . . . . . . 6 . . . 1 . . 1 . 1 Protection 1 | . . . . . . . . . . . . . . . . . 1 . . . . . Artifact . | . . . . . . . . . . . . . . . . . . . . . . . Weapon 4 | . . . . . . . . . . . . . 1 2 . . 1 . . . . . Energy Gun . | . . . . . . . . . . . . . . . . . . . . . . . Energy Cannon . | . . . . . . . . . . . . . . . . . . . . . . . Ballistic Gun . | . . . . . . . . . . . . . . . . . . . . . . . Ballistic Cannon . | . . . . . . . . . . . . . . . . . . . . . . . Launcher . | . . . . . . . . . . . . . . . . . . . . . . . Special Weapon . | . . . . . . . . . . . . . . . . . . . . . . . Impact Weapon . | . . . . . . . . . . . . . . . . . . . . . . . Slashing Weapon . | . . . . . . . . . . . . . . . . . . . . . . . Piercing Weapon 4 | . . . . . . . . . . . . . 1 2 . . 1 . . . . . Special Melee Weapon . | . . . . . . . . . . . . . . . . . . . . . . . Unidentified Prototypes 10 | . . . . . . 1 . . . . . . 2 1 1 . 2 1 2 . . . Parts Lost 29 | . . 1 . . 1 1 . . 4 . 1 . 5 1 . 1 . 2 5 . . 7 Power 3 | . . . . . . . . . 2 . . . . . . . . . 1 . . . Propulsion 13 | . . . . . 1 . . . 1 . . . 3 1 . 1 . 2 2 . . 2 Utility 12 | . . 1 . . . 1 . . 1 . 1 . 2 . . . . . 2 . . 4 Weapon 1 | . . . . . . . . . . . . . . . . . . . . . . 1 Highest Loss Streak 5 | . . 1 . . 1 1 . . 4 . 1 . 4 1 . 1 . 2 5 . . 4 To Critical Strikes . | . . . . . . . . . . . . . . . . . . . . . . . Average Backups 4 | 1 3 3 3 5 5 5 5 5 5 5 5 5 4 2 4 4 4 5 4 3 4 3 Power 1 | . 1 1 1 3 4 4 3 3 3 3 3 3 1 . . . 1 1 1 . 1 1 Propulsion . | . . . . . . . . . . . . . . . . . . . . . . . Utility 1 | . . . . 1 1 1 2 2 2 2 2 2 2 2 2 2 2 3 3 3 3 2 Weapon . | 1 2 2 1 . . . . . . . . . . . 2 2 1 . . . . . Tool/Special . | . . . . . . . . . . . . . . . . . . . . . . . Unused Backups 8 | . . . 2 1 . 1 . . . . . . 1 1 . . 1 1 . . . . Power 3 | . . . 1 . . 1 . . . . . . 1 . . . . . . . . . Propulsion . | . . . . . . . . . . . . . . . . . . . . . . . Utility . | . . . . . . . . . . . . . . . . . . . . . . . Weapon 4 | . . . 1 1 . . . . . . . . . 1 . . 1 . . . . . Tool/Special 1 | . . . . . . . . . . . . . . . . . . 1 . . . . Average Slot Usage (%) 36 | . 11 9 . 1 16 42 44 40 33 16 20 11 43 63 63 63 59 54 35 41 45 29 Engine 1 | . . . . . . 3 6 6 4 . . . 1 5 5 4 . . . . . . Core 2 | . . . . . 1 6 6 6 4 . . . 1 5 5 5 5 2 . . . . Flight 8 | . . . . . 5 18 18 13 11 5 9 5 11 20 15 14 10 8 4 8 8 2 Device 4 | . 11 9 . . 1 6 6 6 4 3 3 . . 1 7 10 9 5 2 4 8 3 Processor 4 | . . . . 1 7 6 6 6 6 5 5 5 5 5 5 5 5 5 4 4 4 3 Hackware 11 | . . . . . . . . . . . . . 19 21 20 20 21 22 16 14 16 16 Piercing Weapon 2 | . . . . . . . . . . . . . 2 5 5 5 6 7 4 4 4 . Peak Build Rating 84 | . 1 1 2 5 20 27 23 20 20 19 19 12 84 68 68 68 71 78 78 79 74 75 Average Rating 36 | . . . . 3 8 22 22 20 16 15 16 12 42 61 65 66 61 55 44 69 74 43 On Entrance 30 | . . 1 . 2 5 17 23 20 20 12 19 12 12 54 62 68 57 71 42 59 74 74 Avg Prop Armor Cover (%) 4 | . . . . . . . . . . . . . 4 . . . . . . . . . Naked Turns 151 | . 6 19 104 22 . . . . . . . . . . . . . . . . . . Heaviest Build 30 | . 1 1 . . 6 10 9 9 9 1 1 . 22 22 24 24 25 23 22 30 19 19 Greatest Support 45 | 3 3 3 3 3 9 12 12 9 9 12 12 6 41 30 24 24 16 24 45 30 30 30 Greatest Overweight (x) 2 | . . . . . . . . . . . . . 1 . . . 1 2 . . . . Average Overweight (x) . | . . . . . . . . . . . . . . . . . . . . . . . Largest Inventory Capacity 10 | 5 5 5 5 5 5 5 5 5 5 5 5 5 5 5 5 5 5 10 5 5 5 5 Average Capacity 5 | 5 5 5 5 5 5 5 5 5 5 5 5 5 5 5 5 5 5 7 5 5 5 5 Most Carried 6 | 3 4 3 5 5 5 5 5 5 5 5 5 5 5 5 5 5 5 6 5 5 4 5 Average Carried 4 | 1 3 3 3 4 5 5 5 5 5 5 5 5 4 2 4 4 4 5 4 3 4 3 Final Capacity 5 | 5 5 5 5 5 5 5 5 5 5 5 5 5 5 5 5 5 5 5 5 5 5 5 Final Carried 5 | 3 3 3 5 5 5 5 5 5 5 5 5 5 3 4 4 5 5 5 3 4 4 4 Class Distribution -------------------- 54% | Hacker-Mutant 30% | Mutant 8% | Sprinter 5% | Hacker-Sprinter Dominant Class ---------------- Mutant | -10/Materials Mutant | -9/Materials Mutant | -8/Materials Mutant | -7/Factory Mutant | -7/DSF Sprinter | -6/Factory Sprinter | -6/Waste Mutant | -6/Factory Mutant | -6/DSF Mutant | -5/Factory Mutant | -5/Waste Mutant | -5/Factory Mutant | -5/DSF Hacker-Sprinter | -4/Factory Hacker-Mutant | -4/Upper Caves Hacker-Mutant | -4/Upper Caves Hacker-Mutant | -4/Zhirov Hacker-Mutant | -3/Proximity Caves Hacker-Mutant | -3/Research Hacker-Mutant | -2/Research Hacker-Mutant | -2/DSF Hacker-Mutant | -1/Access Resources | -11 -10 -9 -8 -7 -7 -6 -6 -6 -6 -5 -5 -5 -5 -4 -4 -4 -4 -3 -3 -2 -2 -1 ----------- Run | Yrd Mat Mat Mat Fac DSF Fac Was Fac DSF Fac Was Fac DSF Fac Upp Upp Zhi Pro Res Res DSF Acc Matter Collected 329 | 200 . . . . 10 15 . . . . . . . . . 5 . 99 . . . . Remotely . | . . . . . . . . . . . . . . . . . . . . . . . Salvage Created . | . . . . . . . . . . . . . . . . . . . . . . . Parts . | . . . . . . . . . . . . . . . . . . . . . . . Haulers Intercepted . | . . . . . . . . . . . . . . . . . . . . . . . Recyclers Shooed 1 | . . . 1 . . . . . . . . . . . . . . . . . . . Parts Field Recycled 3 | . . . . . . . . . . . . . . . . . 3 . . . . . Retrieved Matter 81 | . . . . . . . . . . . . . . . . . 81 . . . . . Parts Self-Destructed . | . . . . . . . . . . . . . . . . . . . . . . . Prevented . | . . . . . . . . . . . . . . . . . . . . . . . Parts Restored . | . . . . . . . . . . . . . . . . . . . . . . . Kills | -11 -10 -9 -8 -7 -7 -6 -6 -6 -6 -5 -5 -5 -5 -4 -4 -4 -4 -3 -3 -2 -2 -1 ------- Run | Yrd Mat Mat Mat Fac DSF Fac Was Fac DSF Fac Was Fac DSF Fac Upp Upp Zhi Pro Res Res DSF Acc Combat Hostiles Destroyed . | . . . . . . . . . . . . . . . . . . . . . . . Classes Destroyed . | . . . . . . . . . . . . . . . . . . . . . . . Best Kill Streak . | . . . . . . . . . . . . . . . . . . . . . . . Combat Bots Only . | . . . . . . . . . . . . . . . . . . . . . . . Max Kills in Single Turn . | . . . . . . . . . . . . . . . . . . . . . . . Gunslinging . | . . . . . . . . . . . . . . . . . . . . . . . Exploded . | . . . . . . . . . . . . . . . . . . . . . . . Melee . | . . . . . . . . . . . . . . . . . . . . . . . Uniques/NPCs Destroyed . | . . . . . . . . . . . . . . . . . . . . . . . Combat | -11 -10 -9 -8 -7 -7 -6 -6 -6 -6 -5 -5 -5 -5 -4 -4 -4 -4 -3 -3 -2 -2 -1 -------- Run | Yrd Mat Mat Mat Fac DSF Fac Was Fac DSF Fac Was Fac DSF Fac Upp Upp Zhi Pro Res Res DSF Acc Hostile Shots Fired 491 | . . 34 25 . 36 37 . 9 7 . 1 . 39 10 . 14 . 20 114 . . 145 Missed 225 | . . 16 11 . 17 27 . 7 2 . . . 16 3 . 10 . 11 49 . . 56 Hits 266 | . . 18 14 . 19 10 . 2 5 . 1 . 23 7 . 4 . 9 65 . . 89 Melee 7 | . . . . . 6 . . . . . 1 . . . . . . . . . . . Projectile 259 | . . 18 14 . 13 10 . 2 5 . . . 23 7 . 4 . 9 65 . . 89 AOE 1 | . . . . . 1 . . . . . . . . . . . . . . . . . Critical Strikes 11 | . . . . . 2 1 . . . . 1 . . 1 . 1 . . 2 . . 3 Part Disruptions 1 | . . . . . . . . . . . . . 1 . . . . . . . . . Damage Taken 5639 | . . 191 220 . 511 143 . 12 227 . 53 . 442 172 . 71 . 213 1424 . . 1960 Core 3859 | . . 162 220 . 447 19 . 6 150 . 53 . 139 127 . . . 122 749 . . 1665 Absorbed by Shields 122 | . . . . . . . . . 31 . . . 36 . . . . . . . . 55 Ignored by Resistances 17 | . . . . . . . . . . . . . . . . 17 . . . . . . Core Remaining (%) 72 | 100 100 59 60 . 36 . . . 79 . . . 80 . . . . 72 42 . 100 . Volleys Fired . | . . . . . . . . . . . . . . . . . . . . . . . Largest . | . . . . . . . . . . . . . . . . . . . . . . . Hottest . | . . . . . . . . . . . . . . . . . . . . . . . Shots Fired . | . . . . . . . . . . . . . . . . . . . . . . . Gun . | . . . . . . . . . . . . . . . . . . . . . . . Cannon . | . . . . . . . . . . . . . . . . . . . . . . . Launcher . | . . . . . . . . . . . . . . . . . . . . . . . Special . | . . . . . . . . . . . . . . . . . . . . . . . Kinetic . | . . . . . . . . . . . . . . . . . . . . . . . Thermal . | . . . . . . . . . . . . . . . . . . . . . . . Explosive . | . . . . . . . . . . . . . . . . . . . . . . . Electromagnetic . | . . . . . . . . . . . . . . . . . . . . . . . Robot Hit Streak . | . . . . . . . . . . . . . . . . . . . . . . . Robot Miss Streak . | . . . . . . . . . . . . . . . . . . . . . . . Penetration Max . | . . . . . . . . . . . . . . . . . . . . . . . Secondary Targets . | . . . . . . . . . . . . . . . . . . . . . . . Shots Hit Robots . | . . . . . . . . . . . . . . . . . . . . . . . Core Hits . | . . . . . . . . . . . . . . . . . . . . . . . Critical Kills . | . . . . . . . . . . . . . . . . . . . . . . . Critical Parts Destroyed . | . . . . . . . . . . . . . . . . . . . . . . . Critical Strikes . | . . . . . . . . . . . . . . . . . . . . . . . Melee Attacks 8 | . . . . . . . . . . . . . . . 1 . . . 6 . . 1 Impact . | . . . . . . . . . . . . . . . . . . . . . . . Slashing . | . . . . . . . . . . . . . . . . . . . . . . . Piercing 8 | . . . . . . . . . . . . . . . 1 . . . 6 . . 1 Sneak Attacks . | . . . . . . . . . . . . . . . . . . . . . . . Combat Hostiles . | . . . . . . . . . . . . . . . . . . . . . . . Follow-up Attacks . | . . . . . . . . . . . . . . . . . . . . . . . Damage Inflicted 9 | . . 1 8 . . . . . . . . . . . . . . . . . . . Guns . | . . . . . . . . . . . . . . . . . . . . . . . Cannons . | . . . . . . . . . . . . . . . . . . . . . . . Explosions . | . . . . . . . . . . . . . . . . . . . . . . . Melee . | . . . . . . . . . . . . . . . . . . . . . . . Ramming 9 | . . 1 8 . . . . . . . . . . . . . . . . . . . Kinetic . | . . . . . . . . . . . . . . . . . . . . . . . Thermal . | . . . . . . . . . . . . . . . . . . . . . . . Explosive . | . . . . . . . . . . . . . . . . . . . . . . . Electromagnetic . | . . . . . . . . . . . . . . . . . . . . . . . Impact . | . . . . . . . . . . . . . . . . . . . . . . . Slashing . | . . . . . . . . . . . . . . . . . . . . . . . Piercing . | . . . . . . . . . . . . . . . . . . . . . . . Highest Corruption 10 | . . 2 . . . . 9 9 9 . 9 9 10 . . . . 1 . . . . Average Corruption 6 | . . 2 . . . . 9 9 9 . 9 9 9 . . . . 1 . . . . Corruption Purged . | . . . . . . . . . . . . . . . . . . . . . . . Corruption Blocked . | . . . . . . . . . . . . . . . . . . . . . . . Effects 6 | . . . . . . . 1 1 1 . . . 2 . . . . 1 . . . . Message Errors 1 | . . . . . . . . 1 . . . . . . . . . . . . . . Matter Fused 1 | . . . . . . . . . 1 . . . . . . . . . . . . . Heat Flow Errors 1 | . . . . . . . . . . . . . 1 . . . . . . . . . Parts Rejected 2 | . . . . . . . 1 . . . . . 1 . . . . . . . . . Data Loss (minor) 1 | . . . . . . . . . . . . . . . . . . 1 . . . . Overload Shots . | . . . . . . . . . . . . . . . . . . . . . . . Overflow Damage . | . . . . . . . . . . . . . . . . . . . . . . . Projectiles . | . . . . . . . . . . . . . . . . . . . . . . . Explosions . | . . . . . . . . . . . . . . . . . . . . . . . Melee . | . . . . . . . . . . . . . . . . . . . . . . . Knockbacks . | . . . . . . . . . . . . . . . . . . . . . . . Impact . | . . . . . . . . . . . . . . . . . . . . . . . Kinetic . | . . . . . . . . . . . . . . . . . . . . . . . Secondary . | . . . . . . . . . . . . . . . . . . . . . . . Self-Inflicted Damage 4 | . . . 4 . . . . . . . . . . . . . . . . . . . Shots . | . . . . . . . . . . . . . . . . . . . . . . . Rammed 3 | . . 1 2 . . . . . . . . . . . . . . . . . . . Targets Rammed 3 | . . 1 2 . . . . . . . . . . . . . . . . . . . Kicked . | . . . . . . . . . . . . . . . . . . . . . . . Crushed . | . . . . . . . . . . . . . . . . . . . . . . . Highest Temperature 145 | . . . . . . 10 . . . . . . 145 7 . 10 . . 1 . . 2 Average Temperature 31 | . . . . . . 10 . . . . . . 85 4 . 10 . . 1 . . 2 Received Heat Transfer 471 | . . 66 99 . . 75 . . . . . . . 63 . 27 . 9 60 . . 72 Siege Activations . | . . . . . . . . . . . . . . . . . . . . . . . Martial Activations . | . . . . . . . . . . . . . . . . . . . . . . . Shielding Activations . | . . . . . . . . . . . . . . . . . . . . . . . Robots Disrupted . | . . . . . . . . . . . . . . . . . . . . . . . Combat Hostiles . | . . . . . . . . . . . . . . . . . . . . . . . Robots Corrupted . | . . . . . . . . . . . . . . . . . . . . . . . Combat Hostiles . | . . . . . . . . . . . . . . . . . . . . . . . Parts Fried . | . . . . . . . . . . . . . . . . . . . . . . . Impact Corruptions . | . . . . . . . . . . . . . . . . . . . . . . . Robots Melted . | . . . . . . . . . . . . . . . . . . . . . . . Combat Hostiles . | . . . . . . . . . . . . . . . . . . . . . . . Parts Melted . | . . . . . . . . . . . . . . . . . . . . . . . Heat Transferred . | . . . . . . . . . . . . . . . . . . . . . . . Parts Sabotaged . | . . . . . . . . . . . . . . . . . . . . . . . Parts Stolen . | . . . . . . . . . . . . . . . . . . . . . . . Parts Stripped . | . . . . . . . . . . . . . . . . . . . . . . . Power Chain Reactions . | . . . . . . . . . . . . . . . . . . . . . . . Alert | -11 -10 -9 -8 -7 -7 -6 -6 -6 -6 -5 -5 -5 -5 -4 -4 -4 -4 -3 -3 -2 -2 -1 ------- Run | Yrd Mat Mat Mat Fac DSF Fac Was Fac DSF Fac Was Fac DSF Fac Upp Upp Zhi Pro Res Res DSF Acc Maximum Alert Level 2 | . . . . . . . . . . . . . . . . . . . 2 1 . 1 Low Security (%) 75 | 100 100 100 100 100 100 100 100 100 100 100 100 100 100 100 . . . . . . 100 56 Level 1 21 | . . . . . . . . . . . . . . . . . . . 80 100 . 43 Level 2 2 | . . . . . . . . . . . . . . . . . . . 19 . . . Level 3 . | . . . . . . . . . . . . . . . . . . . . . . . Level 4 . | . . . . . . . . . . . . . . . . . . . . . . . Level 5 . | . . . . . . . . . . . . . . . . . . . . . . . High Security . | . . . . . . . . . . . . . . . . . . . . . . . Max Security . | . . . . . . . . . . . . . . . . . . . . . . . Peak Influence 435 | . 15 45 26 . 68 100 36 25 21 16 . . 15 15 . . . . 435 244 175 290 Initial 300 | . . . 18 . 3 30 31 25 21 . . . . . . . . . 300 244 175 104 Average 94 | . 2 2 8 . 29 51 30 25 12 3 . . 4 4 . . . . 315 240 175 179 Influence Increases 1275 | . 15 45 8 5 65 120 15 5 . 16 . . 15 25 . . . . 575 . . 366 Trap Triggered on 0b10 50 | . . . . . 50 . . . . . . . . . . . . . . . . . Successful Hack 76 | . . . 8 5 . . . 5 . 16 . . . 10 . . . . 14 . . 18 Destroy Structure 9 | . . . . . . . . . . . . . . . . . . . 6 . . 3 Advance Influence 300 | . . . . . . . . . . . . . . . . . . . 300 . . . Partial Spotted 105 | . 15 . . . . 30 15 . . . . . . . . . . . . . . 45 Lose Combat Pursuer 735 | . . 45 . . 15 90 . . . . . . 15 15 . . . . 255 . . 300 Influence Decreases 985 | . 15 . 53 . 12 88 69 11 30 16 . . 15 25 . . . . 140 201 59 251 Entered New Map 457 | . . . 27 . 2 28 59 11 9 . . . . . . . . . . 191 59 71 Time Decay 342 | . 15 . 26 . . 50 10 . . 16 . . . 15 . . . . 90 10 . 110 Lost Part 186 | . . . . . 10 10 . . 21 . . . 15 10 . . . . 50 . . 70 Squads Dispatched 15 | . 1 . 1 . 2 2 . . . . . . 1 . . . . . 3 . . 5 Investigation 4 | . 1 . . . . . . . . . . . . . . . . . 1 . . 2 Extermination 3 | . . . . . . 1 . . . . . . . . . . . . 1 . . 1 Reinforcement 8 | . . . 1 . 2 1 . . . . . . 1 . . . . . 1 . . 2 Assault . | . . . . . . . . . . . . . . . . . . . . . . . Garrison . | . . . . . . . . . . . . . . . . . . . . . . . Intercept . | . . . . . . . . . . . . . . . . . . . . . . . Searches Triggered . | . . . . . . . . . . . . . . . . . . . . . . . Construction Impeded . | . . . . . . . . . . . . . . . . . . . . . . . Haulers Reinforced . | . . . . . . . . . . . . . . . . . . . . . . . Active Scanning Responses . | . . . . . . . . . . . . . . . . . . . . . . . Cargo Convoy Interrupts . | . . . . . . . . . . . . . . . . . . . . . . . Stealth | -11 -10 -9 -8 -7 -7 -6 -6 -6 -6 -5 -5 -5 -5 -4 -4 -4 -4 -3 -3 -2 -2 -1 --------- Run | Yrd Mat Mat Mat Fac DSF Fac Was Fac DSF Fac Was Fac DSF Fac Upp Upp Zhi Pro Res Res DSF Acc Distress Signals 2 | . . . . . . . . . . . . . . . . . . . 1 . . 1 Communications Jammed 3 | . . . . . . . . . . . . . . . . . . 1 2 . . . Distress Signals 2 | . . . . . . . . . . . . . . . . . . . 2 . . . Times Spotted 153 | . 2 15 6 . 9 15 6 1 1 1 4 1 6 5 . 1 . 12 30 . 1 37 Peak Tracking Total 27 | . 2 14 6 . 6 11 6 1 1 1 4 1 5 6 . 1 . 9 21 . 1 27 Tactical Retreats 16 | . . 1 . . 1 3 . . . . . . 1 1 . . . . 5 . . 4 Traps | -11 -10 -9 -8 -7 -7 -6 -6 -6 -6 -5 -5 -5 -5 -4 -4 -4 -4 -3 -3 -2 -2 -1 ------- Run | Yrd Mat Mat Mat Fac DSF Fac Was Fac DSF Fac Was Fac DSF Fac Upp Upp Zhi Pro Res Res DSF Acc Traps Triggered 8 | . . 1 . . 1 1 . . 1 2 . . 1 . . . . . . . . 1 Indirectly . | . . . . . . . . . . . . . . . . . . . . . . . Trap Hack Attempts . | . . . . . . . . . . . . . . . . . . . . . . . Triggered . | . . . . . . . . . . . . . . . . . . . . . . . Disarmed . | . . . . . . . . . . . . . . . . . . . . . . . Reprogrammed . | . . . . . . . . . . . . . . . . . . . . . . . Reused 5 | . . . . . 5 . . . . . . . . . . . . . . . . . Traps Extracted . | . . . . . . . . . . . . . . . . . . . . . . . Installed 17 | . . . . . 11 . . . 6 . . . . . . . . . . . . . Triggered 5 | . . . . . 5 . . . . . . . . . . . . . . . . . Machines | -11 -10 -9 -8 -7 -7 -6 -6 -6 -6 -5 -5 -5 -5 -4 -4 -4 -4 -3 -3 -2 -2 -1 ---------- Run | Yrd Mat Mat Mat Fac DSF Fac Was Fac DSF Fac Was Fac DSF Fac Upp Upp Zhi Pro Res Res DSF Acc Machines Disabled . | . . . . . . . . . . . . . . . . . . . . . . . Max in Single Turn . | . . . . . . . . . . . . . . . . . . . . . . . Machines Repaired . | . . . . . . . . . . . . . . . . . . . . . . . Machines Dismantled . | . . . . . . . . . . . . . . . . . . . . . . . Machines Sabotaged . | . . . . . . . . . . . . . . . . . . . . . . . Overloaded Fab Kills . | . . . . . . . . . . . . . . . . . . . . . . . Hacking | -11 -10 -9 -8 -7 -7 -6 -6 -6 -6 -5 -5 -5 -5 -4 -4 -4 -4 -3 -3 -2 -2 -1 --------- Run | Yrd Mat Mat Mat Fac DSF Fac Was Fac DSF Fac Was Fac DSF Fac Upp Upp Zhi Pro Res Res DSF Acc Machines Accessed 27 | . 1 1 1 1 . 2 . 2 . 3 . 1 . 2 1 1 4 . 4 1 . 2 Terminals 17 | . 1 . 1 1 . 1 . 1 . 2 . 1 . . 1 1 . . 4 1 . 2 Fabricators 1 | . . . . . . 1 . . . . . . . . . . . . . . . . Repair Stations . | . . . . . . . . . . . . . . . . . . . . . . . Recycling Units 3 | . . 1 . . . . . . . 1 . . . 1 . . . . . . . . Scanalyzers 1 | . . . . . . . . . . . . . . 1 . . . . . . . . Garrison Access 1 | . . . . . . . . 1 . . . . . . . . . . . . . . Total Hacks 62 | . 3 1 3 3 . 6 . 3 . 5 . 1 . 3 1 1 17 . 10 1 . 4 Successful 34 | . . 1 1 1 . 1 . 1 . 2 . 1 . 3 1 1 17 . 2 1 . 1 Failed 28 | . 3 . 2 2 . 5 . 2 . 3 . . . . . . . . 8 . . 3 Catastrophic 8 | . 1 . . . . . . 1 . 1 . . . . . . . . 3 . . 2 Database Lockouts . | . . . . . . . . . . . . . . . . . . . . . . . Manual 13 | . 3 . 3 . . 2 . . . 2 . . . . . . . . 2 . . 1 Terminals 35 | . 3 . 3 3 . 2 . 2 . 4 . 1 . . 1 1 . . 10 1 . 4 Fabricators 4 | . . . . . . 4 . . . . . . . . . . . . . . . . Repair Stations . | . . . . . . . . . . . . . . . . . . . . . . . Recycling Units 3 | . . 1 . . . . . . . 1 . . . 1 . . . . . . . . Scanalyzers 2 | . . . . . . . . . . . . . . 2 . . . . . . . . Garrison Access 1 | . . . . . . . . 1 . . . . . . . . . . . . . . Terminal Hacks 28 | . . . 1 1 . . . 1 . 1 . 1 . . 1 1 17 . 2 1 . 1 Record 7 | . . . . . . . . . . . . . . . 1 1 5 . . . . . Part Schematic 4 | . . . . . . . . . . . . . . . . . 4 . . . . . Robot Analysis 5 | . . . . . . . . . . . . . . . . . 4 . . . . 1 Prototype ID Bank 4 | . . . . . . . . . . . . . . . . . 4 . . . . . Open DSF 4 | . . . . 1 . . . 1 . . . 1 . . . . . . . 1 . . Patrol Status 1 | . . . . . . . . . . 1 . . . . . . . . . . . . Registered Components 2 | . . . 1 . . . . . . . . . . . . . . . 1 . . . Registered Prototypes 1 | . . . . . . . . . . . . . . . . . . . 1 . . . Fabricator Hacks 1 | . . . . . . 1 . . . . . . . . . . . . . . . . Network Status 1 | . . . . . . 1 . . . . . . . . . . . . . . . . Repair Station Hacks . | . . . . . . . . . . . . . . . . . . . . . . . Recycling Unit Hacks 3 | . . 1 . . . . . . . 1 . . . 1 . . . . . . . . Retrieve Components 3 | . . 1 . . . . . . . 1 . . . 1 . . . . . . . . Scanalyzer 2 | . . . . . . . . . . . . . . 2 . . . . . . . . Retrieve Study 2 | . . . . . . . . . . . . . . 2 . . . . . . . . Garrison Access Hacks . | . . . . . . . . . . . . . . . . . . . . . . . Unauthorized Hacks . | . . . . . . . . . . . . . . . . . . . . . . . Terminals . | . . . . . . . . . . . . . . . . . . . . . . . Fabricators . | . . . . . . . . . . . . . . . . . . . . . . . Repair Stations . | . . . . . . . . . . . . . . . . . . . . . . . Recycling Units . | . . . . . . . . . . . . . . . . . . . . . . . Scanalyzers . | . . . . . . . . . . . . . . . . . . . . . . . Garrison Access . | . . . . . . . . . . . . . . . . . . . . . . . Data Cores Recovered . | . . . . . . . . . . . . . . . . . . . . . . . Used . | . . . . . . . . . . . . . . . . . . . . . . . Hacking Detections 14 | . 1 . 1 1 . 1 . 1 . 2 . 1 . 1 . . . . 3 . . 2 Full Trace Events 4 | . 1 . . . . . . . . . . . . . . . . . 1 . . 2 Feedback Events . | . . . . . . . . . . . . . . . . . . . . . . . Feedback Blocked 1 | . . . . . . . . . . . . . . . . . . . . . . 1 Robot Schematics Acquired . | . . . . . . . . . . . . . . . . . . . . . . . Robots Built . | . . . . . . . . . . . . . . . . . . . . . . . Authchips . | . . . . . . . . . . . . . . . . . . . . . . . Time . | . . . . . . . . . . . . . . . . . . . . . . . Total Robot Build Rating . | . . . . . . . . . . . . . . . . . . . . . . . Part Schematics Acquired 4 | . . . . . . . . . . . . . . . . . 4 . . . . . Parts Built . | . . . . . . . . . . . . . . . . . . . . . . . Authchips . | . . . . . . . . . . . . . . . . . . . . . . . Time . | . . . . . . . . . . . . . . . . . . . . . . . Total Part Build Rating . | . . . . . . . . . . . . . . . . . . . . . . . Part Studies Acquired 2 | . . . . . . . . . . . . . . 2 . . . . . . . . Parts Repaired . | . . . . . . . . . . . . . . . . . . . . . . . Time . | . . . . . . . . . . . . . . . . . . . . . . . Parts Recycled . | . . . . . . . . . . . . . . . . . . . . . . . Recycled Matter . | . . . . . . . . . . . . . . . . . . . . . . . Retrieved Matter . | . . . . . . . . . . . . . . . . . . . . . . . Retrieved Components 1 | . . 1 . . . . . . . . . . . . . . . . . . . . Parts Scanalyzed . | . . . . . . . . . . . . . . . . . . . . . . . Part Schematics Acquired . | . . . . . . . . . . . . . . . . . . . . . . . Parts Damaged . | . . . . . . . . . . . . . . . . . . . . . . . Bothacking | -11 -10 -9 -8 -7 -7 -6 -6 -6 -6 -5 -5 -5 -5 -4 -4 -4 -4 -3 -3 -2 -2 -1 ------------ Run | Yrd Mat Mat Mat Fac DSF Fac Was Fac DSF Fac Was Fac DSF Fac Upp Upp Zhi Pro Res Res DSF Acc Used RIF Installer . | . . . . . . . . . . . . . . . . . . . . . . . Robots Hacked . | . . . . . . . . . . . . . . . . . . . . . . . Non-combat . | . . . . . . . . . . . . . . . . . . . . . . . Combat . | . . . . . . . . . . . . . . . . . . . . . . . Robot Hacks Applied . | . . . . . . . . . . . . . . . . . . . . . . . Relay Couplers Released . | . . . . . . . . . . . . . . . . . . . . . . . Fabnet Peak Effective % . | . . . . . . . . . . . . . . . . . . . . . . . Robots Rewired . | . . . . . . . . . . . . . . . . . . . . . . . Allies Hacked . | . . . . . . . . . . . . . . . . . . . . . . . Hacks Repelled . | . . . . . . . . . . . . . . . . . . . . . . . Allies | -11 -10 -9 -8 -7 -7 -6 -6 -6 -6 -5 -5 -5 -5 -4 -4 -4 -4 -3 -3 -2 -2 -1 -------- Run | Yrd Mat Mat Mat Fac DSF Fac Was Fac DSF Fac Was Fac DSF Fac Upp Upp Zhi Pro Res Res DSF Acc Total Allies 1 | . . . . . . . . . . . 1 . . . . . . . . . . . Largest Group 1 | . . . . . . . . . . . 1 . . . . . . . . . . . Highest-Rated Group 31 | . . . . . . . . . . . 31 . . . . . . . . . . . Highest-Rated Ally 31 | . . . . . . . . . . . 31 . . . . . . . . . . . Total Orders . | . . . . . . . . . . . . . . . . . . . . . . . Ally Attacks . | . . . . . . . . . . . . . . . . . . . . . . . Total Damage . | . . . . . . . . . . . . . . . . . . . . . . . Kills . | . . . . . . . . . . . . . . . . . . . . . . . Allies Corrupted . | . . . . . . . . . . . . . . . . . . . . . . . Allies Melted . | . . . . . . . . . . . . . . . . . . . . . . . Intel | -11 -10 -9 -8 -7 -7 -6 -6 -6 -6 -5 -5 -5 -5 -4 -4 -4 -4 -3 -3 -2 -2 -1 ------- Run | Yrd Mat Mat Mat Fac DSF Fac Was Fac DSF Fac Was Fac DSF Fac Upp Upp Zhi Pro Res Res DSF Acc Active Infowar (turns) 841 | . 46 79 . . . 66 32 19 25 . . . . 20 106 121 62 132 133 . . . Structural 125 | . 46 79 . . . . . . . . . . . . . . . . . . . . Seismic 142 | . . . . . . 66 32 19 25 . . . . . . . . . . . . . Jamming 574 | . . . . . . . . . . . . . . 20 106 121 62 132 133 . . . Robot Analysis Total 5 | . . . . . . . . . . . . . . . . . 4 . . . . 1 Derelict Logs Recovered 1 | . . . . . . . . . . . . . . . 1 . . . . . . . Drone Launches . | . . . . . . . . . . . . . . . . . . . . . . . Drone Recoveries . | . . . . . . . . . . . . . . . . . . . . . . . Exploration | -11 -10 -9 -8 -7 -7 -6 -6 -6 -6 -5 -5 -5 -5 -4 -4 -4 -4 -3 -3 -2 -2 -1 ------------- Run | Yrd Mat Mat Mat Fac DSF Fac Was Fac DSF Fac Was Fac DSF Fac Upp Upp Zhi Pro Res Res DSF Acc Turns Passed 1744 | 18 52 98 104 35 75 108 32 19 33 69 33 11 61 85 106 121 95 132 193 30 11 223 Spaces Moved 3809 | 29 100 194 170 62 129 328 103 54 62 129 82 27 87 241 293 317 159 279 418 56 30 460 Core 906 | 29 100 194 170 62 75 . . . . . . . . . . . . . 36 . . 240 Treads . | . . . . . . . . . . . . . . . . . . . . . . . Legs . | . . . . . . . . . . . . . . . . . . . . . . . Wheels . | . . . . . . . . . . . . . . . . . . . . . . . Hover . | . . . . . . . . . . . . . . . . . . . . . . . Flight 2903 | . . . . . 54 328 103 54 62 129 82 27 87 241 293 317 159 279 382 56 30 220 Fastest Speed 25 | 50 50 50 50 50 29 30 30 34 34 37 37 40 25 31 34 34 37 34 34 37 37 37 Average Speed 39 | 50 50 50 50 50 41 30 30 34 36 39 38 40 36 31 34 34 42 43 40 37 37 43 Slowest Speed 200 | 50 50 50 50 50 50 32 34 34 40 40 40 40 109 34 34 37 117 200 50 37 37 50 Overloaded Moves . | . . . . . . . . . . . . . . . . . . . . . . . Propulsion Burnouts . | . . . . . . . . . . . . . . . . . . . . . . . Robots Hopped 22 | . . . . . . 6 . . . . . . . 1 . . . . 11 . . 4 Potential Cave-ins 3 | . . . . . . . . . . . . . . . . . . . 3 . . . Cave-ins Triggered . | . . . . . . . . . . . . . . . . . . . . . . . Teleports 1 | . . . . . . . . . . . . . . . . . . 1 . . . . Exploration Rate (%) 35 | 3 30 26 22 3 88 17 86 2 74 5 73 1 86 8 55 55 61 54 20 2 41 15 Regions Visited 22 Branch Regions 4 Pre-discovered Areas 3 | . . . . . . . . . . . . . . . . . 3 . . . . . Known Exits Taken 4 | . . . . 1 . . . 1 . . . 1 . . . . . . . 1 . . Unknown Exits Taken 10 | 1 1 1 1 . . . . . . . . . . 1 1 1 1 1 1 . . . Scrap Searched 4 | . . . . . . . . . . . . . . . 1 1 . 2 . . . . Spaces Dug 8 | . . . . . . . . . . . . . . . 1 . . . 6 . . 1 Terrain Destroyed 8 | . . . . . . . . . . . . . . . 1 . . . 6 . . 1 Melee 8 | . . . . . . . . . . . . . . . 1 . . . 6 . . 1 Projectile . | . . . . . . . . . . . . . . . . . . . . . . . AOE . | . . . . . . . . . . . . . . . . . . . . . . . Terrain Rammed . | . . . . . . . . . . . . . . . . . . . . . . . Walls Destroyed . | . . . . . . . . . . . . . . . . . . . . . . . Machines Disabled . | . . . . . . . . . . . . . . . . . . . . . . . Actions | -11 -10 -9 -8 -7 -7 -6 -6 -6 -6 -5 -5 -5 -5 -4 -4 -4 -4 -3 -3 -2 -2 -1 --------- Run | Yrd Mat Mat Mat Fac DSF Fac Was Fac DSF Fac Was Fac DSF Fac Upp Upp Zhi Pro Res Res DSF Acc Total 3990 | 31 101 194 189 65 146 329 102 53 71 146 83 26 111 249 297 328 187 291 420 65 29 477 Wait 46 | . . . 12 1 1 . . . . . 2 . . . . 11 12 . . . . 7 Move 3750 | 28 99 193 169 61 128 317 102 53 61 129 81 26 86 238 292 316 158 278 399 55 29 452 Hop 16 | . . . . . . 5 . . . . . . . 1 . . . . 7 . . 3 Pick Up 34 | 3 1 . 4 1 . 1 . . . . . . 5 5 2 . 5 2 1 3 . 1 Fast Attach 30 | . . . . 1 6 4 . . . 2 . . 9 . . . 3 1 3 1 . . Attach 26 | . 1 . . . . . . . . . . . 6 3 2 . 3 2 3 4 . 2 Detach 6 | . . . . . . . . . . . . . . . . 1 . 2 . 2 . 1 Swap 2 | . . . . . . . . . . . . . . . . . 1 1 . . . . Drop 21 | . . . 2 1 . 2 . . . . . . 1 2 . . 5 5 1 . . 2 Fire . | . . . . . . . . . . . . . . . . . . . . . . . Melee 8 | . . . . . . . . . . . . . . . 1 . . . 6 . . 1 Ram 3 | . . 1 2 . . . . . . . . . . . . . . . . . . . Kick . | . . . . . . . . . . . . . . . . . . . . . . . Crush . | . . . . . . . . . . . . . . . . . . . . . . . Escape Stasis 31 | . . . . . . . . . 4 15 . . 4 . . . . . . . . 8 Rewire . | . . . . . . . . . . . . . . . . . . . . . . . Trap 17 | . . . . . 11 . . . 6 . . . . . . . . . . . . . Miscellaneous . | . . . . . . . . . . . . . . . . . . . . . . . Route ------- -11/Scrapyard -10/Materials (discovered 3 exits: *Mat / [*Min] / [Sub]) -9/Materials -8/Materials -7/Factory -7/DSF -6/Factory -6/Waste -6/Factory -6/DSF -5/Factory -5/Waste -5/Factory -5/DSF -4/Factory -4/Upper Caves -4/Upper Caves (discovered 2 exits: *Res / *Zhi) -4/Zhirov -3/Proximity Caves -3/Research (discovered 2 exits: *Res / Tes) -2/Research -2/DSF -1/Access History --------- Turn | Location | Event 7 | -11/Scrapyard | Discovered new exit (range 15) 19 | -11/Scrapyard | Entered Materials 29 | -10/Materials | Discovered new exit (range 11) 36 | -10/Materials | Discovered new exit (range 10) 69 | -10/Materials | Discovered new exit (range 4) 71 | -10/Materials | Entered another Materials area 71 | -9/Materials | Evolved 2 slots: Propulsion x2 168 | -9/Materials | Discovered new exit (range 3) 169 | -9/Materials | Entered another Materials area 169 | -8/Materials | Evolved 2 slots: Power x1, Propulsion x1 265 | -8/Materials | Discovered new exit (range 16) 273 | -8/Materials | Entered Factory 273 | -7/Factory | Evolved 2 slots: Propulsion x1, Utility x1 308 | -7/Factory | Identified exit to DSF 308 | -7/Factory | Entered DSF 316 | -7/DSF | Build established: Mutant 325 | -7/DSF | Additional patrols routed to DSF 377 | -7/DSF | Core integrity fell below 50% 379 | -7/DSF | Discovered new exit (range 14) 383 | -7/DSF | Entered Factory 383 | -6/Factory | Evolved 2 slots: Utility x2 442 | -6/Factory | Spotted B-75 Beast 491 | -6/Factory | Manually triggered Chute Trap 491 | -6/Factory | Sucked down chute 491 | -6/Factory | Entered Waste 498 | -6/Waste | Spotted C-40 Crusher 502 | -6/Waste | Spotted C-40 Crusher 506 | -6/Waste | EMP discharged 508 | -6/Waste | Spotted C-40 Crusher 508 | -6/Waste | Spotted C-40 Crusher 510 | -6/Waste | Spotted C-40 Crusher 514 | -6/Waste | Spotted C-40 Crusher 518 | -6/Waste | Discovered new exit (range 14) 523 | -6/Waste | Entered Factory 542 | -6/Factory | Identified exit to DSF 542 | -6/Factory | Entered DSF 569 | -6/DSF | Discovered new exit (range 14) 571 | -6/DSF | Additional patrols routed to DSF 575 | -6/DSF | Entered Factory 575 | -5/Factory | Evolved 2 slots: Propulsion x1, Utility x1 598 | -5/Factory | Lost 4 parts (2p1n1u) 644 | -5/Factory | Manually triggered Chute Trap 644 | -5/Factory | Sucked down chute 644 | -5/Factory | Entered Waste 645 | -5/Waste | Met a frightened Derelict 659 | -5/Waste | EMP discharged 661 | -5/Waste | Spotted C-40 Crusher 661 | -5/Waste | Spotted C-40 Crusher 663 | -5/Waste | Spotted C-40 Crusher 665 | -5/Waste | Crushed by Compactor (1 part destroyed, 1 dropped) 667 | -5/Waste | Spotted C-40 Crusher 668 | -5/Waste | Spotted C-40 Crusher 671 | -5/Waste | Discovered new exit (range 14) 677 | -5/Waste | Entered Factory 688 | -5/Factory | Identified exit to DSF 688 | -5/Factory | Entered DSF 692 | -5/DSF | System corruption reached 10% 726 | -5/DSF | Additional patrols routed to DSF 741 | -5/DSF | Discovered new exit (range 14) 749 | -5/DSF | Entered Factory 749 | -4/Factory | Evolved 2 slots: Propulsion x1, Utility x1 779 | -4/Factory | Lost 4 parts (3n1u) 802 | -4/Factory | Discovered new exit (range 12) 834 | -4/Factory | Entered Upper Caves 851 | -4/Upper Caves | Found Alien Artifact 852 | -4/Upper Caves | Identified Core Expander 852 | -4/Upper Caves | Installed Core Expander, added new Utility slot 937 | -4/Upper Caves | Discovered new exit (range 12) 940 | -4/Upper Caves | Entered another Upper Caves area 942 | -4/Upper Caves | Discovered new exit (range 11) 992 | -4/Upper Caves | Spotted B-86 Titan 998 | -4/Upper Caves | Encountered a Warlord checkpoint 1032 | -4/Upper Caves | Attracted the attention of an 0b10 checkpoint 1056 | -4/Upper Caves | Discovered new exit (range 13) 1061 | -4/Upper Caves | Entered Zhirov 1061 | -4/Zhirov | Discovered new exit (range 3) 1068 | -4/Zhirov | Met Zhirov 1075 | -4/Zhirov | Learned location of Quarantine (-2) 1075 | -4/Zhirov | Learned location of Testing (-3) 1075 | -4/Zhirov | Learned location of Command (-1) 1081 | -4/Zhirov | Zhirov requested help retrieving the SGEMP Prototype 1086 | -4/Zhirov | Found Alien Artifact 1086 | -4/Zhirov | Identified Integrated Reactor 1086 | -4/Zhirov | Installed Integrated Reactor, increased core energy generation (+10) 1092 | -4/Zhirov | Found Alien Artifact 1127 | -4/Zhirov | Build established: Hacker-Mutant 1156 | -4/Zhirov | Entered Proximity Caves 1162 | -3/Proximity Caves | Spotter reported a threat 1195 | -3/Proximity Caves | Spotter reported a threat 1201 | -3/Proximity Caves | Identified Transdimensional Reconstructor 1201 | -3/Proximity Caves | Warped through subspace 1269 | -3/Proximity Caves | Attracted the attention of an 0b10 outpost 1286 | -3/Proximity Caves | Discovered new exit (range 5) 1288 | -3/Proximity Caves | Entered Research 1288 | -3/Research | Evolved 2 slots: Propulsion x1, Utility x1 1289 | -3/Research | Identified exit to Testing 1445 | -3/Research | Core integrity fell below 50% 1480 | -3/Research | Discovered new exit (range 5) 1481 | -3/Research | Entered another Research area 1481 | -2/Research | Evolved 2 slots: Propulsion x1, Utility x1 1495 | -2/Research | Lost 5 parts (1p2n2u) 1511 | -2/Research | Identified exit to DSF 1511 | -2/Research | Entered DSF 1517 | -2/DSF | Discovered new exit (range 15) 1522 | -2/DSF | Entered Access 1522 | -1/Access | Evolved 2 slots: Propulsion x1, Utility x1 1643 | -1/Access | Lost 4 parts (2n1u1w) 1718 | -1/Access | Core integrity fell below 50% 1740 | -1/Access | Core integrity fell below 20% 1745 | -1/Access | Destroyed by H-81 Overseer with Heavy Linear Accelerator Last Messages --------------- 01671_ ALERT: Potential suspicious activity detected, Programmers report to Access Zone 6J. 01671_ Slug penetrates Wall. 01671_ Penetrated by Slug. 01688_ Slug penetrates Wall. 01695_ C-30 ARC bursts open, deploying its payload. 01695_ S-43 Plague unfolds itself. 01702_ Penetrated by Slug. 01702_ Hacking Suite destroyed. 01703_ Slug penetrates Wall. 01724_ Penetrated by Slug. 01727_ Slug penetrates Wall. 01728_ Penetrated by Slug. 01731_ Imp. System Shield destroyed. 01731_ K-01 Serf cleans the Longscan Aggregator. 01735_ W-44 Eye sends out distress signal. 01736_ K-01 Serf cleans the Longscan Aggregator. 01739_ M-36 Artificer repairs S-43 Plague Xenon Bombardment Thruster. 01741_ ALERT: Suspicious intruders detected, dispatching Cutter reinforcements to area. Map ----- +----------------------------------------------------+ | ?????????????????????????????????????????????????? | | ?????????????????????????????????????????????????? | | ?????????????????????????????????????????????????? | | ?????????????????????????????????????????????????? | | ?????????????????????????????????????????????????? | | ?????????????????????????????????????????????????? | | ?????????????????????????????????????????????????? | | ?????????????????????????????????????????????????? | | ?????????????????????????????????????????????????? | | ?????????????????????????????????????????????????? | | ??????????????????????? ?????????????????????????? | | ????????????????????? ""? ?????????????????????? | | ???????????????????# """?????????????????????? | | ???????????????????# " ?????????????????????? | | ???????????????????# ?????????????????????? | | ???????????????????# ?????????????????????? | | ???????????????????# ! ?????????????????????? | | ???????????????????# t #?????????????????????? | | ?????????????????### #?????????????????????? | | ??????????????????t #?????????????????????? | | ???????????????????# #?????????????????????? | | ???????????????????# #?????????????????????? | | ???? ?????????????# ########??????????????? | | ???? ????????????# ##### ????????? | | ??? ??????????# t k ????????? | | ??? ??????????# @ ! ???????? | | ?? ?????????# H??????? | | ?? ########## % ???????? | | ??# !** u k ???????? | | ??# ^!** ##### ?????????? | | ??# s s !** ########??????????????? | | ??# s #?????????????????????? | | ??# #???????##????????????? | | ??# #????? ?????#??????? | | ??# #????? ! ???? #??????? | | ??############ #?????? ? #??????? | | ?????????????#k #?????? #??????? | | ???????????### k #????#?? ???????? | | ??????????? ## #?? #?? ????????? | | ????????? ## # #??? ?????????? | | ?????? ## "" sss/ #??? ??????????? | | ???? ## "" # #?###/###????????? | | ? ## """""" #?? #?# ########## | | """ ## """""" #????#?# "" =% | | """ # "" ######## "T ! | | R" # "" | | ? """ # ######## ####### | | ??? "" # #??????#######?????# | | ????? # #??????????????????# | | ??????? # #??????????????????# | +----------------------------------------------------+ Best States ------------- Heat Dissipation 52 Energy Generation 53 Energy Capacity 510 Matter Stores 300 Matter Capacity 300 Sight Range 16 Terrain Scan Density 210 Jamming Range 16 Power Amplification 30 Resistance: KI 25 Power Shielding 90 Evasion (%) 72 Offensive Hacking 34 Defensive Hacking 40 Item Schematics ----------------- Assault Drone Bay | -4/Zhirov | Free Exp. Heat Sink | -4/Zhirov | Free Exp. Optical Array | -4/Zhirov | Free Imp. Arc Thrower | -4/Zhirov | Free Robot Schematics ------------------ None Fabricated ------------ Nothing Repaired ---------- Nothing Studied --------- Impulse Thruster | -4/Factory | Hacked Lance | -4/Factory | Hacked Alien Tech Used ----------------- Core Expander Integrated Reactor Transdimensional Reconstructor Achievements -------------- None Challenges ------------ None Game ------ Seed LaunchPiercelightMallet Manual? 0 Play Time 00:35:21 Cumulative 479.7 hours Start 2025.11.07 @ 01:20:29 End 2025.11.07 @ 01:53:19 Sessions 1 Manual Loads 0 Difficulty Rogue Special Mode None Game No. 611 Rogue 611 Adventurer 0 Explorer 0 Win Type - Total 14 Types 6/0/2/2/1/0/2/1/0/0 Lore% 90 Gallery% 85 Achievement% 63 Wizard Run 0 Options --------- Layout 0 ASCII 0 Keyboard 0 Movement Mouse Keybinds 0 Fullscreen 1 Font 24/Terminus Map View 76x50 Zoom Use 0% Tactical HUD 1 Map Filters NONE Filters NONE Steam 1 RUN: d30a54d0-8060-4e69-ada5-cff4045d28a3